[Event "European Women-ch 2023"]
[Site "Petrovac"]
[Date "2023.03.27"]
[Round "9.9"]
[White "Golsta, Ramona"]
[Black "Dwilewicz, Katarzyna"]
[Result "0-1"]
[ECO "E25"]
[WhiteElo "1760"]
[BlackElo "2114"]
[Annotator "TA"]
[PlyCount "34"]
[EventDate "2023.03.15"]
[EventType "swiss"]
[EventCountry "MNE"]
[SourceTitle "playchess.com"]
[Source "ChessBase"]
[SourceQuality "1"]
[TimeControl "40/5400+30:1800+30"]

{[%evp 17,34,20,13,-3,-3,-56,-67,-122,-120,-130,-117,-287,-194,-653,-649,-634,-574,-703,-502]} 1. d4 {[%emt 0:00:01] ChessBase II} Nf6 {[%emt 0:00:13]} 2. c4 {[%emt 0:00:06]} e6 {[%emt 0:00:04]} 3. Nc3 {[%emt 0:00:08]} Bb4 {[%emt 0:00:05]} 4. f3 {[%emt 0:00:09]} d5 {[%emt 0:00:23]} 5. a3 {[%emt 0:00:43]} Bxc3+ {[%emt 0:00:08]} 6. bxc3 {[%emt 0:00:04]} c5 {[%emt 0:01:05]} 7. cxd5 {[%emt 0:16:35]} Nxd5 {[%emt 0:00:31]} 8. dxc5 {[%emt 0:14:18]} Qa5 {[%emt 0:00:29]} 9. e4 {[%emt 0:12:55]} Ne7 {[%emt 0:01:06][%cal Oe8g8]} 10. Ne2 {[%emt 0:04:25] E25: Nimzo-Indian: Sämisch: 5...c5 6 f3 d5 7 cxd5.} O-O {[%emt 0:05:23][%cal Of8d8]} 11. Qd6 {[%emt 0:11:49]} ({White should try} 11. Be3 $11) 11... Nbc6 $15 {[%emt 0:07:41][%cal Bb8c6,Bc6d4,Bd4c2][%mdl 1056] [#] Black has compensation.} 12. h4 $146 {[%emt 0:04:18] [#]} (12. Qd2 $15) ({Predecessor:} 12. Be3 Rd8 13. Qg3 e5 14. Bg5 Rd3 15. h4 Kf8 16. h5 h6 17. Bxe7+ Nxe7 18. Qxe5 {0-1 Forintos,G-Smyslov,V Monaco Grand Prix-01 GM 1967 (3)}) 12... e5 $1 $17 {[%emt 0:14:22] Threatens to win with ...Rd8.} 13. Qd2 {[%emt 0:03:55] Dodges Rd8} Be6 {[%emt 0:05:26][%cal Oa8d8] Black is more active.} 14. Qg5 $2 {[%emt 0:03:31]} (14. c4 $17) 14... f6 {[%emt 0:09:30]} (14... Qxc5 15. Rb1 $17) 15. Qg3 {[%emt 0:00:58]} (15. Qe3) 15... Nd4 $19 {[%emt 0:08:05] aiming for ...Nc2+. Black is clearly winning.} ({Stronger than} 15... Qxc5 16. Qf2 Qa5 17. g4 $17) 16. Kf2 {[%emt 0:03:10]} Nc2 {[%emt 0:01:01]} (16... Nxe2 17. Bxe2 Qxc5+ 18. Be3 $17) 17. Bh6 {[%emt 0:06:44][%csl Gh6][%cal Rg3g7] [#]} Rf7 {[%emt 0:05:46] White did not feel at home in the position after the opening.   Weighted Error Value: White=1.13/Black=0.14 (very precise)} (17... Nxa1 $2 18. Qxg7#) 0-1

[Event "European Women-ch 2023"]
[Site "Petrovac"]
[Date "2023.03.27"]
[Round "9.10"]
[White "Mkrtchian, Lilit"]
[Black "Javakhishvili, Lela"]
[Result "0-1"]
[ECO "C00"]
[WhiteElo "2379"]
[BlackElo "2443"]
[Annotator "TA"]
[PlyCount "114"]
[EventDate "2023.03.15"]
[EventType "swiss"]
[EventCountry "MNE"]
[SourceTitle "playchess.com"]
[Source "ChessBase"]
[SourceQuality "1"]
[TimeControl "40/5400+30:1800+30"]

{[%evp 23,113,-38,-39,-42,-38,-41,-44,-43,0,0,0,-16,-20,-25,-27,-34,0,-27,-3,-62,-16,-6,-14,-14,17,-116,-120,-116,-121,-144,-89,-143,-135,-151,-122,-204,-126,-118,-122,-247,-245,-437,-367,-453,-435,-455,-439,-418,-441,-895,-880,-829,-599,-612,-602,-879,-691,-839,-556,-605,-570,-521,-545,-447,-415,-363,-336,-637,-633,-616,-588,-878,-870,-29978,-29979,-29979,-723,-1184,-486,-722,-722,-29977,-723,-29992,-29993,-29993,-29994,-29995,-29996,-29996,-29997,-29997]} 1. Nf3 {[%emt 0:00:19]} Nf6 {[%emt 0:00:16]} 2. g3 {[%emt 0:03:39]} d5 {[%emt 0:01:10]} 3. Bg2 {[%emt 0:00:07]} c5 {[%emt 0:01:00]} 4. O-O {[%emt 0:00:38]} e6 {[%emt 0:01:32]} 5. d3 {[%emt 0:03:56]} Nc6 {[%emt 0:00:23]} 6. Nbd2 {[%emt 0:03:15]} Be7 {[%emt 0:00:41]} 7. e4 {[%emt 0:00:07]} O-O {[%emt 0:00:15]} 8. Re1 {[%emt 0:01:04]} Qc7 {[%emt 0:03:17]} 9. e5 {[%emt 0:06:34]} Nd7 {[%emt 0:00:09]} 10. Qe2 {[%emt 0:00:11]} b5 {[%emt 0:00:33][%cal Bb7b5,Bb5b4][%mdl 32]} 11. h4 {[%emt 0:00:36]} a5 {[%emt 0:00:42]} 12. Nf1 {[%emt 0:00:09]} Ba6 {[%emt 0:00:50] The main line 12...Ba6 scores better than 12...b4.} 13. N1h2 {[%emt 0:02:43] C00: French: Unusual White 2nd moves.} Rfc8 {[%emt 0:00:36]} 14. Bf4 {[%emt 0:00:41]} b4 {[%emt 0:04:58]} 15. h5 {[%emt 0:10:49] Black is slightly better.} c4 {[%emt 0:01:47][%cal Ob4b3]} 16. h6 {[%emt 0:15:02]} g6 {[%emt 0:00:53][%cal Ob4b3]} 17. Ng4 {[%emt 0:09:39] [#]} b3 $146 {[%emt 0:09:46] Strongly threatening ...bxc2.} ({Predecessor:} 17... Qd8 18. Qe3 cxd3 19. cxd3 Nc5 20. Red1 a4 21. Nf6+ Bxf6 22. exf6 Nd7 23. Ne5 Ndxe5 24. Bxe5 Nxe5 25. Qxe5 {0-1 Osinovsky,S (2241)-Barria Zuniga,D (2341) Titled Tuesday intern op 15th Nov Early blitz 2022 (7)}) 18. axb3 {[%emt 0:05:43]} ({Reject} 18. cxb3 cxd3 19. Qd1 Nb4 $17) 18... cxd3 {[%emt 0:00:21]} 19. cxd3 {[%emt 0:00:06]} Nb4 {[%emt 0:00:41]} (19... Nc5 $5 {[%cal Rc5d3]} 20. Nf6+ Bxf6 21. exf6 Qb7 $15) 20. Red1 {[%emt 0:09:31]} Qd8 {[%emt 0:05:08]} (20... Nc5 {is interesting.} 21. Nd4 Qd8 22. Qd2 Bxd3 23. Rdc1 Ne4) 21. Nf6+ {[%emt 0:07:19]} Nxf6 {[%emt 0:01:44]} (21... Bxf6 $15 22. exf6 Nc5) 22. exf6 $11 {[%emt 0:00:12]} Bxf6 {[%emt 0:01:05]} 23. Be5 {[%emt 0:00:17]} Nc6 {[%emt 0:13:06]} 24. Bh3 {[%emt 0:05:55]} (24. Bxf6 $11 Qxf6 25. Qe3) 24... Nxe5 $17 {[%emt 0:05:31]} 25. Nxe5 {[%emt 0:00:03]} Qd6 {[%emt 0:00:22]} 26. f4 {[%emt 0:04:45]} Bb5 {[%emt 0:04:03]} ({Black should play} 26... Qb6+ 27. Kh2 Bb5) 27. Rd2 {[%emt 0:02:47]} (27. Rdc1 $142) 27... Qb6+ {[%emt 0:06:47]} 28. Kh2 {[%emt 0:00:19]} Be8 {[%emt 0:01:27]} 29. Ra3 {[%emt 0:06:07]} (29. d4 $17 {was necessary.}) 29... Rc7 {[%emt 0:04:42]} 30. d4 {[%emt 0:01:26]} Rac8 {[%emt 0:00:28]} 31. Nf3 {[%emt 0:00:37] Now White is beyond hope.} (31. Ra1 $17 {was called for.}) 31... Rc1 $19 {[%emt 0:03:03]} 32. g4 $2 {[%emt 0:00:24]} (32. Bg2) 32... Qc7 {[%emt 0:01:58]} 33. Kg3 {[%emt 0:00:57]} g5 {[%emt 0:01:41]} 34. Qe3 {[%emt 0:00:58]} Be7 {[%emt 0:04:23]} 35. Ra2 {[%emt 0:00:23]} Rb8 {[%emt 0:09:13] [#] ...Bd6 is the strong threat.} 36. Ne5 {[%emt 0:00:33]} (36. Qe5 $142 gxf4+ 37. Kh2 Qxe5 38. Nxe5) 36... f6 {[%emt 0:02:27] Hoping for ...gxf4+.} 37. Nd3 {[%emt 0:00:25]} gxf4+ {[%emt 0:01:38]} 38. Nxf4 {[%emt 0:00:11]} Bd6 {[%emt 0:00:46]} 39. Rd3 {[%emt 0:00:38]} Bf7 {[%emt 0:05:14]} 40. Rxa5 {[%emt 0:00:00]} Rc2 {[%emt 0:00:00][%cal Bc1c2,Bc2b2,Bb2b1,Bb1g1][%mdl 32]} 41. Ra6 {[%emt 0:06:37]} Rxb2 {[%emt 0:08:55] White must now prevent ...e5.} 42. Rxd6 {[%emt 0:21:06]} Qxd6 {[%emt 0:00:09]} 43. Kh4 {[%emt 0:00:04]} Kh8 {[%emt 0:05:01]} 44. Rc3 {[%emt 0:05:02]} Rb1 {[%emt 0:05:18]} 45. Nh5 $2 {[%emt 0:00:30]} (45. Bg2) 45... Bxh5 {[%emt 0:00:29]} 46. Kxh5 {[%emt 0:00:03]} Rg8 {[%emt 0:03:36] aiming for ...Rh1.} 47. Qf2 {[%emt 0:00:23]} Qf8 {[%emt 0:00:54] ( -> ...Rh1)} 48. Qc2 {[%emt 0:00:29]} Rg1 {[%emt 0:01:45]} 49. Bg2 {[%emt 0:00:23]} Rg5+ {[%emt 0:00:17]} (49... Rg6 $142 50. Kh4 Rxh6+ 51. Kg3 Qd6+ 52. Kf3 Rh3+ 53. Kf2 Rxg2+ 54. Kxg2 Qh2+ 55. Kf1 Qh1+ 56. Kf2 Rh2+ {[%mdl 64] Skewer} 57. Kg3 Qg1+ 58. Kf4 Qxd4+ 59. Kf3 Rxc2 60. Rxc2 Qd3+ 61. Kg2 Qxc2+ 62. Kg3 d4 63. g5 fxg5 64. Kf3 Qd3+ 65. Kf2 Qe3+ 66. Kf1 d3 67. Kg2 d2 68. Kf1 d1=Q+ 69. Kg2 Qdg1#) 50. Kh4 {[%emt 0:00:02]} Qxh6+ {[%emt 0:00:09]} 51. Kg3 {[%emt 0:00:02]} Rg8 {[%emt 0:00:26]} 52. Rc8 {[%emt 0:00:34]} Re1 {[%emt 0:02:10]} (52... Qe3+ $142 53. Kh2 Re1 54. Rxg8+ Kxg8 55. Qc8+ Kg7 56. Qc7+ Kg6 57. Qg3 Qg1+ 58. Kh3 Re3 59. Kh4 Rxg3 60. Kxg3 Qe3+ 61. Bf3 Kg5 62. b4 Qe1+ 63. Kh2 Qf2+ 64. Bg2 Kxg4 65. b5 Qf4+ 66. Kh1 Kg3 67. Kg1 Qf2+ 68. Kh1 Qxg2#) 53. Qc7 {[%emt 0:01:23]} Qe3+ {[%emt 0:01:04] Black mates.} 54. Kh2 {[%emt 0:00:02]} Qg1+ {[%emt 0:00:17]} (54... Qxb3 55. Rxg8+ Kxg8 56. Qd8+ Kg7 57. Qe7+ Kg8 58. Qd8+ Kg7 59. Qe7+ Kg8 60. Qd8+ $11) 55. Kg3 {[%emt 0:00:11]} Re3+ {[%emt 0:03:53]} ({Inferior is} 55... Qxd4 56. Rxg8+ Kxg8 57. Qd8+ Kf7 58. Qd7+ Kf8 59. Qd8+ Kg7 60. Qe7+ Kh6 61. Qf8+ Kg6 62. Qe8+ Kh6 63. Qf8+ Kg6 64. Qe8+ Kh6 65. Qf8+ $11) 56. Kh4 {[%emt 0:00:09]} Qe1+ {[%emt 0:00:24]} ({Worse is} 56... Qxg2 57. Rxg8+ Kxg8 58. Qd8+ Kg7 59. Qe7+ Kg8 60. Qe8+ Kg7 61. Qe7+ Kg8 62. Qe8+ Kg7 63. Qe7+ $11) 57. Kh5 {[%emt 0:00:06]} Qf1 {[%emt 0:01:25] A fantastic game!   Weighted Error Value: White=0.97/Black=0.66} 0-1

[Event "European Women-ch 2023"]
[Site "Petrovac"]
[Date "2023.03.27"]
[Round "9.10"]
[White "Lach, Aleksandra"]
[Black "Mammadova, Gulnar"]
[Result "1/2-1/2"]
[ECO "C54"]
[WhiteElo "2170"]
[BlackElo "2358"]
[Annotator "TA"]
[PlyCount "118"]
[EventDate "2023.03.15"]
[EventType "swiss"]
[EventCountry "MNE"]
[SourceTitle "playchess.com"]
[Source "ChessBase"]
[SourceQuality "1"]
[TimeControl "40/5400+30:1800+30"]

{[%evp 13,118,12,13,14,26,8,14,17,18,18,20,30,40,22,21,20,20,0,0,-3,0,0,0,0,0,0,0,0,0,-20,0,0,0,0,0,0,0,0,0,0,0,0,0,0,31,23,31,25,20,26,33,16,12,28,12,0,0,0,0,0,0,0,0,0,0,0,0,0,0,0,0,0,0,0,0,0,0,0,0,0,0,0,0,0,0,0,0,0,0,0,0,0,0,0,0,0,0,0,0,0,0,0,0,0,0,0,0]} 1. e4 {[%emt 0:00:09]} e5 {[%emt 0:00:11]} 2. Nf3 {[%emt 0:00:16]} Nc6 {[%emt 0:00:12]} 3. Bc4 {[%emt 0:00:44]} Nf6 {[%emt 0:00:12]} 4. d3 {[%emt 0:02:15]} Bc5 {[%emt 0:00:24]} 5. O-O {[%emt 0:00:50]} d6 {[%emt 0:00:14]} 6. c3 {[%emt 0:00:48]} a6 {[%emt 0:00:24]} 7. a4 {[%emt 0:00:11]} h6 {[%emt 0:00:00]} 8. Re1 {[%emt 0:04:13] C54: Giuoco Piano: 4 c3 Nf6, main lines with 5 d4 and 5 d3.} O-O {[%emt 0:00:35]} 9. h3 $1 {[%emt 0:01:24] 9.h3 is better than 9.Nbd2.} Ba7 {[%emt 0:00:21]} 10. Nbd2 {[%emt 0:02:17]} (10. b4 {is interesting.} Nh5 11. Na3 Qf6 12. Ra2) 10... Be6 {[%emt 0:00:19]} 11. b4 {[%emt 0:01:08]} Qd7 {[%emt 0:05:02]} 12. Bxe6 {[%emt 0:10:02]} fxe6 {[%emt 0:03:34]} 13. Nf1 {[%emt 0:01:05]} Nh5 {[%emt 0:02:32][%cal Of8f3]} 14. Ra2 {[%emt 0:01:37]} Nf4 {[%emt 0:05:21] [#]} 15. Bxf4 $146 {[%emt 0:10:11]} ({Predecessor:} 15. Be3 Bxe3 16. Rxe3 Rf7 17. Kh2 Raf8 18. g3 Ng6 19. Kg2 d5 20. exd5 exd5 21. Qb3 {1-0 Perez,M (2418)-Pierrot,J (2383) ARG-ch sf 94th 2019 (3)}) 15... Rxf4 {[%emt 0:00:26]} 16. N1h2 {[%emt 0:00:28]} Raf8 {[%emt 0:03:18]} 17. b5 {[%emt 0:28:20]} Ne7 {[%emt 0:02:09][%cal Bc6e7,Be7g6,Bg6e5][%mdl 32]} 18. d4 {[%emt 0:00:43]} exd4 {[%emt 0:01:54]} 19. cxd4 {[%emt 0:04:50]} axb5 {[%emt 0:00:48]} 20. axb5 {[%emt 0:00:13]} Bb6 {[%emt 0:00:05]} 21. Qd3 {[%emt 0:07:59]} Ng6 {[%emt 0:05:14]} 22. g3 {[%emt 0:06:51] Prevents e5.} R4f6 {[%emt 0:03:48]} 23. Kg2 {[%emt 0:00:27]} e5 {[%emt 0:06:17]} 24. Ree2 {[%emt 0:01:01]} exd4 {[%emt 0:02:21]} 25. Nxd4 {[%emt 0:01:33][%cal Bf3d4,Bd4f5,Bf5e3,Be3d5][%mdl 32]} Ne5 {[%emt 0:03:01]} 26. Qb3+ {[%emt 0:00:05]} Kh7 {[%emt 0:03:25]} 27. Nf5 {[%emt 0:01:20]} g6 {[%emt 0:02:12]} 28. Ne3 {[%emt 0:00:12]} Qf7 {[%emt 0:02:47]} 29. Qxf7+ {[%emt 0:01:06]} R6xf7 {[%emt 0:00:07]} 30. Nd5 {[%emt 0:03:32]} Bc5 {[%emt 0:00:41]} 31. f4 {[%emt 0:01:34]} Nd3 {[%emt 0:03:46] [#] Strongly threatening ...Nc1.} 32. Rad2 {[%emt 0:04:08]} (32. Red2 $5 {[%cal Rd2d3]} Nb4 33. Nxb4 Bxb4 34. Re2 $11) 32... Nc1 {[%emt 0:02:09]} 33. Re1 {[%emt 0:00:01]} Nb3 {[%emt 0:00:08]} 34. Rb2 {[%emt 0:00:01] The position is equal.} Nd4 {[%emt 0:00:23]} 35. Nf3 {[%emt 0:05:22]} c6 {[%emt 0:05:28]} 36. bxc6 {[%emt 0:00:02]} bxc6 {[%emt 0:00:07]} 37. Ne3 {[%emt 0:00:28]} Re7 {[%emt 0:06:18]} 38. Nc2 {[%emt 0:00:32]} Nxf3 {[%emt 0:04:14]} 39. Kxf3 {[%emt 0:00:02]} Ra8 {[%emt 0:00:06]} 40. Ra1 {[%emt 0:00:00]} Rxa1 {[%emt 0:00:00]} 41. Nxa1 $11 {[%emt 0:06:40][%mdl 4096] Endgame KRB-KRN} Bd4 {[%emt 0:03:26]} 42. Rb1 {[%emt 0:04:46]} Ra7 {[%emt 0:00:36]} 43. Nc2 {[%emt 0:00:09]} Bc5 {[%emt 0:01:01]} 44. Rb3 {[%emt 0:05:42]} Kg7 {[%emt 0:01:57]} 45. Rc3 {[%emt 0:05:00]} Kf7 {[%emt 0:03:16]} 46. e5 {[%emt 0:00:40]} Ke6 {[%emt 0:01:23]} 47. exd6 {[%emt 0:00:10]} Kxd6 {[%emt 0:00:18]} 48. Rd3+ {[%emt 0:00:08]} Ke6 {[%emt 0:00:31]} 49. g4 {[%emt 0:01:43]} Ra4 {[%emt 0:03:02]} 50. Rc3 {[%emt 0:03:20]} Bd6 {[%emt 0:05:00]} 51. Rxc6 {[%emt 0:04:13]} Rxf4+ {[%emt 0:01:41]} 52. Ke3 {[%emt 0:00:10][%cal Oc6d6]} Rf1 {[%emt 0:01:58]} 53. Ke4 {[%emt 0:00:58]} Rf4+ {[%emt 0:01:06]} 54. Ke3 {[%emt 0:00:01][%cal Oc6d6] [#] Black must now prevent Rxd6+!} g5 {[%emt 0:00:24]} 55. Rc8 {[%emt 0:02:34]} Kd5 {[%emt 0:02:33]} 56. Rd8 {[%emt 0:01:17]} Ke5 {[%emt 0:03:21]} 57. Re8+ {[%emt 0:00:52]} Kf6 {[%emt 0:00:25]} 58. Rc8 {[%emt 0:00:35]} Be5 {[%emt 0:01:53]} 59. Rf8+ {[%emt 0:00:52]} Kg6 {[%emt 0:00:24] An even fight not without its subleties.   Weighted Error Value: White=0.03 (flawless) /Black=0.02 (flawless)} 1/2-1/2

[Event "European Women-ch 2023"]
[Site "Petrovac"]
[Date "2023.03.27"]
[Round "9.10"]
[White "Makropoulou, Marina"]
[Black "Manova, Ivana"]
[Result "1-0"]
[ECO "C53"]
[WhiteElo "2102"]
[BlackElo "1923"]
[Annotator "TA"]
[PlyCount "83"]
[EventDate "2023.03.15"]
[EventType "swiss"]
[EventCountry "MNE"]
[SourceTitle "playchess.com"]
[Source "ChessBase"]
[SourceQuality "1"]
[TimeControl "40/5400+30:1800+30"]

{[%evp 9,83,25,66,60,89,74,80,76,117,112,129,107,111,77,66,106,110,53,62,56,49,51,52,54,54,43,41,45,48,44,35,39,58,24,47,25,78,80,264,261,254,260,585,577,585,582,543,541,470,460,585,531,534,528,511,490,698,689,1788,1681,1123,685,5497,1190,5186,2016,29992,29993,29993,29989,29989,29990,29990,29991,29994,29994]} 1. e4 {[%emt 0:00:03]} e5 {[%emt 0:04:30]} 2. Nf3 {[%emt 0:00:08]} Nc6 {[%emt 0:00:04]} 3. Bc4 {[%emt 0:00:43]} Bc5 {[%emt 0:00:20]} 4. c3 {[%emt 0:00:32]} Bb6 {[%emt 0:01:05]} 5. O-O {[%emt 0:06:44]} Qf6 {[%emt 0:06:12] [#]} 6. d4 $1 {[%emt 0:01:27] Black must now prevent a4. C53: Giuoco Piano sidelines.} d6 {[%emt 0:00:49][%cal Re5d4]} 7. Bg5 {[%emt 0:10:58]} Qg6 {[%emt 0:01:16]} 8. dxe5 {[%emt 0:00:23] White is better.} Bg4 {[%emt 0:32:23] Hoping for ...Bxf3.} 9. exd6 {[%emt 0:02:18]} cxd6 {[%emt 0:00:20]} 10. Nbd2 {[%emt 0:06:03] [#]} h6 $146 {[%emt 0:04:19]} ({Predecessor:} 10... h5 11. Re1 f6 12. Be3 Bc7 13. Qb3 O-O-O 14. Bf7 Qh7 15. Nd4 Nge7 16. Nb5 Kb8 {1-0 Poetsch,H (2498)-Dauth,B (2360) Berlin Lichtenberger op 14th 2015 (8)}) 11. Be3 {[%emt 0:06:55]} Bxe3 {[%emt 0:09:51]} 12. fxe3 {[%emt 0:00:05]} Nf6 {[%emt 0:00:46]} 13. Qe1 {[%emt 0:06:10]} (13. Qb3 $16 Rb8 14. Qa3) 13... O-O $14 {[%emt 0:06:40][%cal Oa8e8]} 14. Nh4 {[%emt 0:07:28]} Qg5 {[%emt 0:01:27]} 15. Nf5 {[%emt 0:01:38]} d5 {[%emt 0:14:42][%mdl 64] [#] Deflection} 16. exd5 {[%emt 0:05:12] h4 would be deadly.} Bxf5 {[%emt 0:00:33]} 17. dxc6 {[%emt 0:00:08]} bxc6 {[%emt 0:01:07]} 18. Nf3 $36 {[%emt 0:07:01][%mdl 2048] White has some pressure.} Qg4 {[%emt 0:02:30]} 19. Nd4 {[%emt 0:02:18]} Be4 {[%emt 0:01:08][%csl Ge4][%cal Rg4g2]} 20. Qe2 {[%emt 0:02:12]} Qg6 {[%emt 0:01:55]} 21. Rf4 {[%emt 0:01:59]} Rae8 {[%emt 0:02:15]} 22. Raf1 {[%emt 0:01:24]} h5 {[%emt 0:00:51]} (22... Re5 $11 {keeps the balance.}) 23. Nf5 $16 {[%emt 0:02:48][%cal Of5g7] White is more active.} Bd5 $2 {[%emt 0:03:41] A mistake that costs the game.} (23... Nd5 $16 24. Bxd5 cxd5) 24. Bxd5 $18 {[%emt 0:05:09]} Nxd5 {[%emt 0:00:46]} 25. R4f3 {[%emt 0:02:35] Strongly threatening Rg3.} Re4 $2 {[%emt 0:01:44]} (25... Qe6 {is a better chance.} 26. Rg3 {[%mdl 64] Discovered Attack} g6 27. Qxh5 Nxe3 28. Nxe3 Qxe3+ 29. Rxe3 gxh5 30. Rg3+ Kh7) 26. Rg3 {[%emt 0:01:45][%mdl 64] Skewer} Rg4 {[%emt 0:01:33]} 27. c4 {[%emt 0:00:13]} Rxg3 {[%emt 0:00:30]} 28. hxg3 {[%emt 0:00:15]} Qg5 {[%emt 0:00:36]} 29. cxd5 {[%emt 0:00:15]} cxd5 {[%emt 0:00:33]} 30. Qf3 {[%emt 0:01:10]} g6 {[%emt 0:00:31]} 31. Nd4 {[%emt 0:00:41][%cal Od4e6,Bf5d4,Bd4c6,Bc6e7][%mdl 32] Ne6! is the strong threat.} Qe7 {[%emt 0:00:26] Against Ne6} 32. Qf4 {[%emt 0:04:34]} Kg7 {[%emt 0:00:22]} (32... Re8 $142 33. Rf2 Rc8) 33. Nc6 {[%emt 0:03:21]} Qb7 {[%emt 0:00:41]} 34. Qf6+ {[%emt 0:00:50]} Kh7 {[%emt 0:00:17]} 35. Ne7 {[%emt 0:01:20][%cal Oe7g6] Threatens to win with Nxg6!} d4 {[%emt 0:00:44]} 36. exd4 {[%emt 0:00:39][%cal Of6f7] Qxf7+! would kill now.} Qe4 {[%emt 0:00:15]} 37. d5 {[%emt 0:00:43]} Rb8 {[%emt 0:00:41]} 38. Qxf7+ {[%emt 0:00:13] White mates.} Kh6 {[%emt 0:00:05]} 39. Ng8+ {[%emt 0:01:40]} Rxg8 {[%emt 0:00:29]} 40. Qxg8 {[%emt 0:00:00]} Qe3+ {[%emt 0:00:00]} 41. Kh2 {[%emt 0:00:43]} Kg5 {[%emt 0:02:51]} 42. Qd8+ {[%emt 0:00:50] Weighted Error Value: White=0.10 (very precise) /Black=0.43} 1-0